bitfinex/quotes_SOLUSD_20251127
["timestamp","ask_amount","ask_price","bid_price","bid_amount"]
[1764260614671,0.66,142.27,142.23,16.308864]
[1764260614889,3.12,142.28,142.25,5.96823579]
[1764260615378,3.78,142.28,142.26,7.02938282]
[1764260615576,0.66,142.27,142.26,7.02938282]
[1764260615777,3.12,142.28,142.26,7.02938282]
[1764260615990,0.66,142.3,142.27,5.96823579]
[1764260616187,5.96823579,142.32,142.29,5.96823579]
[1764260616188,0.66,142.32,142.29,5.96823579]
[1764260616386,3.12,142.31,142.29,5.96823579]
[1764260616890,3.78,142.31,142.29,5.96823579]
[1764260617591,0.66,142.3,142.28,5.96823579]
[1764260617794,0.66,142.3,142.28,12.9964989]
[1764260618107,3.12,142.31,142.29,5.96823579]
[1764260618596,3.78,142.31,142.3,5.96823579]
[1764260618999,3.78,142.31,142.29,5.96823579]
[1764260619293,3.78,142.31,142.3,7.02740688]
[1764260619902,5.96823579,142.35,142.3,31.19415988]
[1764260620082,0.68,142.36,142.31,0.63]
[1764260620399,0.68,142.36,142.33,5.96823579]
[1764260620400,3.8,142.36,142.33,5.96823579]
[1764260621479,3.8,142.36,142.33,12.99403809]
[1764260621795,3.8,142.36,142.3,17.56851721]
[1764260621796,0.68,142.35,142.32,12.99454118]
[1764260622196,0.68,142.35,142.32,7.02630539]
[1764260622379,0.68,142.35,142.32,12.99454118]
[1764260622774,3.8,142.36,142.33,5.96823579]
[1764260622999,3.8,142.36,142.32,7.02630539]
[1764260623000,3.8,142.36,142.35,5.96823579]
[1764260623576,3.8,142.36,142.34,12.99363752]
[1764260624400,3.12,142.36,142.35,5.96823579]
[1764260625180,3.12,142.36,142.34,5.96823579]
[1764260625377,0.1,142.37,142.3,7.02737898]
[1764260625378,0.1,142.37,142.35,12.99317432]
[1764260625595,0.1,142.37,142.36,5.96823579]
[1764260625799,0.1,142.37,142.36,6.59823579]
[1764260626816,0.78,142.37,142.34,16.308864]
[1764260627103,0.78,142.37,142.31,40.90269254]
[1764260627305,0.78,142.37,142.33,5.96823579]
[1764260627484,0.78,142.37,142.34,7.02543206]
[1764260627682,3.1,142.36,142.33,5.96823579]
[1764260627882,9.06823579,142.36,142.32,12.99419112]
[1764260628105,6.64823579,142.35,142.31,12.99497123]
[1764260628305,6.64823579,142.35,142.31,7.02673544]
[1764260628505,3.1,142.36,142.31,7.02673544]
[1764260628506,6.64823579,142.34,142.31,7.02673544]
[1764260628906,0.68,142.33,142.31,7.02673544]
[1764260629408,6.64823579,142.33,142.3,7.02734425]
[1764260629610,3.1,142.32,142.29,12.99606863]
[1764260629816,3.78,142.32,142.29,12.99606863]
[1764260629988,0.68,142.31,142.29,7.02783284]
[1764260630188,0.68,142.31,142.28,7.02822562]
[1764260630508,6.64823579,142.31,142.28,7.02822562]
[1764260630694,0.68,142.31,142.28,12.99646141]
[1764260630888,3.1,142.32,142.28,13.62646141]
[1764260631211,0.68,142.31,142.28,12.99646141]
[1764260632511,6.64823579,142.31,142.26,23.3380521]
[1764260632709,5.96823579,142.3,142.26,23.3380521]
[1764260632889,0.68,142.3,142.26,29.30628789]
[1764260633213,0.68,142.3,142.26,12.99742389]
[1764260633214,0.68,142.29,142.26,12.99742389]
[1764260634700,3.78,142.32,142.28,3.85776467]
[1764260635103,3.1,142.32,142.28,3.85776467]
[1764260635305,0.68,142.31,142.28,3.85776467]
[1764260636114,0.68,142.31,142.28,7.0281894]
[1764260636406,0.68,142.31,142.28,10.88595407]
[1764260636992,3.85776467,142.3,142.26,16.308864]
[1764260637191,3.85776467,142.29,142.26,23.3382194]
[1764260637397,3.85776467,142.29,142.26,7.0293554]
[1764260637709,0.68,142.28,142.26,7.0293554]
[1764260638015,0.68,142.28,142.25,24.60397812]
[1764260639399,3.85776467,142.29,142.25,29.09174279]
[1764260639588,0.68,142.29,142.25,28.46174279]
[1764260639788,0.68,142.29,142.25,29.09174279]
[1764260640211,0.68,142.29,142.25,28.46174279]
[1764260640803,4.53776467,142.32,142.28,3.85776467]
[1764260641000,3.78,142.31,142.28,3.85776467]
[1764260641206,3.78,142.31,142.27,3.85776467]
[1764260641403,3.1,142.31,142.27,3.85776467]
[1764260641607,3.78,142.31,142.28,3.85776467]
[1764260641818,3.1,142.31,142.29,3.85776467]
[1764260642019,3.1,142.31,142.27,0.63]
[1764260642227,3.1,142.31,142.29,3.85776467]
[1764260642512,3.1,142.31,142.29,10.88521415]
[1764260642719,3.78,142.31,142.29,10.88521415]
[1764260643018,3.78,142.31,142.29,7.02744948]
[1764260643813,0.68,142.3,142.28,7.02819478]
[1764260644016,3.85776467,142.29,142.2,10.89011347]
[1764260644222,0.68,142.3,142.22,3.85776467]
[1764260644223,3.85776467,142.27,142.22,3.85776467]
[1764260644404,6.95776467,142.27,142.22,3.85776467]
[1764260644596,0.68,142.26,142.23,7.03086549]
[1764260645118,0.68,142.26,142.23,10.88863016]
[1764260645721,0.68,142.26,142.22,10.88903857]
[1764260646013,0.68,142.26,142.21,3.85776467]
[1764260646014,3.85776467,142.25,142.21,3.85776467]
[1764260646221,10.8872143,142.26,142.21,10.88948567]
[1764260646419,3.85776467,142.25,142.21,10.88948567]
[1764260646596,3.85776467,142.25,142.21,7.031721]
[1764260646796,10.88771838,142.25,142.21,7.031721]
[1764260647116,3.85776467,142.24,142.2,10.89001942]
[1764260647324,3.1,142.23,142.2,10.89001942]
[1764260647696,8.80994492,142.31,142.22,3.85776467]
[1764260647895,3.12,142.28,142.25,3.85776467]
[1764260648118,3.12,142.28,142.24,3.85776467]
[1764260648326,3.12,142.28,142.19,16.308864]
[1764260648327,3.85776467,142.25,142.19,16.308864]
[1764260648498,3.85776467,142.25,142.14,0.2]
[1764260648499,3.85776467,142.2,142.14,0.2]
[1764260648697,3.85776467,142.17,142.14,0.2]
[1764260649004,3.85776467,142.16,142.14,0.2]
[1764260649419,0.68,142.15,142.14,0.2]
[1764260649720,7.65776467,142.15,142.14,0.2]
[1764260650317,16.46770959,142.15,142.14,0.2]
[1764260650515,8.80994492,142.14,142.11,0.2]
[1764260650729,10.89407201,142.12,142.11,0.2]
[1764260651104,4.51776467,142.12,142.11,0.2]
[1764260654908,11.55407201,142.12,142.11,0.2]
[1764260655107,20.36401693,142.12,142.11,0.2]
[1764260655431,24.50610474,142.12,142.11,0.2]
[1764260655803,20.64834007,142.12,142.11,0.2]
[1764260656126,23.76834007,142.12,142.11,0.2]
[1764260657610,40.07720407,142.12,142.11,0.2]
[1764260663117,43.93496874,142.12,142.1,0.2]
[1764260663459,43.93496874,142.12,141.99,0.48432314]
[1764260663460,16.308864,142.08,142.02,0.72]
[1764260663653,3.85776467,142.06,142.03,0.72]
[1764260664447,3.85776467,142.05,142.03,0.72]
[1764260664754,6.97776467,142.04,142.0,0.72]
[1764260664929,6.97776467,142.04,142.01,17.028864]
[1764260666152,6.97776467,142.04,142.01,0.72]
[1764260666523,3.12,142.04,142.02,7.04126179]
[1764260666717,3.12,142.03,142.02,7.04126179]
[1764260666918,3.12,142.03,142.01,7.76158258]
[1764260667418,3.12,142.03,142.02,0.72]
[1764260668645,3.12,142.03,142.02,7.76126179]
[1764260679660,3.12,142.03,142.02,0.72]
[1764260680240,3.12,142.03,142.02,7.76126179]
[1764260683444,3.12,142.03,142.02,9.20656525]
[1764260683843,3.12,142.03,142.02,7.76126179]
[1764260686953,3.12,142.03,142.02,7.04126179]
[1764260687470,3.12,142.03,141.99,7.24255727]
[1764260687471,3.8,142.03,141.99,7.24255727]
[1764260687644,3.8,142.03,141.99,0.2]
[1764260687645,1.44530346,142.01,141.99,0.2]
[1764260687847,2.12530346,142.02,141.99,0.2]
[1764260688061,0.68,142.01,141.99,0.2]
[1764260688445,0.68,142.01,141.99,7.24268226]
[1764260688647,5.24530346,142.03,141.99,7.93268226]
[1764260688958,0.68,142.02,141.99,7.93268226]
[1764260689361,35.47855974,142.07,142.0,2.13530346]
[1764260689362,3.12,142.01,142.0,2.13530346]
[1764260689761,3.12,142.01,142.0,0.69]
[1764260691041,0.28432314,142.07,142.0,0.69]
[1764260691042,0.68,142.07,142.0,26.78319078]
[1764260691242,3.12,142.06,142.03,1.44530346]
[1764260691645,3.12,142.06,142.03,2.13530346]
[1764260692454,4.56530346,142.06,142.02,1.44530346]
[1764260692664,2.12530346,142.05,142.01,1.44530346]
[1764260692850,9.16523048,142.05,142.01,7.04168271]
[1764260693162,2.12530346,142.04,142.0,8.48738661]
[1764260693363,2.12530346,142.04,142.0,7.04208315]
[1764260693549,0.68,142.03,142.0,7.04208315]
[1764260693757,3.12,142.02,142.0,7.04208315]
[1764260693949,3.12,142.02,142.0,8.48738661]
[1764260694156,3.12,142.02,142.0,9.17738661]
[1764260694762,3.8,142.02,141.99,9.50130712]
[1764260694962,3.12,142.02,141.99,10.19130712]
[1764260695471,3.12,142.02,142.0,2.25865427]
[1764260695966,3.12,142.02,142.0,9.30053212]
[1764260696351,3.12,142.02,142.0,9.99053212]
[1764260697163,3.12,142.02,142.0,7.04187785]
[1764260698159,3.12,142.02,142.0,7.73187785]
[1764260698857,3.12,142.02,142.0,7.04187785]
[1764260700758,3.12,142.02,142.0,7.73187785]
[1764260701075,2.93865427,142.01,141.99,0.2]
[1764260701449,0.68,142.0,141.99,0.2]
[1764260702150,5.83257831,142.05,141.99,10.19130099]
[1764260702476,3.12,142.04,142.0,2.25865427]
[1764260702674,0.68,142.04,142.01,0.69]
[1764260702879,3.12,142.03,142.01,0.69]
[1764260703069,3.12,142.03,142.01,7.73172637]
[1764260703781,3.12,142.03,142.01,7.04172637]
[1764260703981,3.8,142.03,142.01,7.04172637]
[1764260704186,3.12,142.03,142.01,7.04172637]
[1764260704685,3.12,142.03,142.01,7.73172637]
[1764260704889,3.12,142.03,142.01,0.69]
[1764260705263,2.93865427,142.02,141.99,0.2]
[1764260705471,2.25865427,142.0,141.99,0.2]
[1764260705880,2.93865427,142.0,141.99,0.2]
[1764260707586,0.68,142.0,141.99,0.2]
[1764260707890,2.93865427,142.0,141.99,0.2]
[1764260713878,9.98090779,142.0,141.99,0.2]
[1764260714692,13.10090779,142.0,141.99,0.2]
[1764260717095,21.91085271,142.0,141.99,0.2]
[1764260725104,9.30090779,142.0,141.99,0.2]
[1764260725309,12.42090779,142.0,141.99,0.2]
[1764260725484,5.37865427,142.0,141.99,0.2]
[1764260725680,2.25865427,142.0,141.99,0.2]
[1764260725880,5.37865427,142.0,141.99,0.2]
[1764260726383,5.37865427,142.0,141.99,0.92]
[1764260726384,3.12,142.0,141.99,0.92]
[1764260728680,10.02238123,142.1,141.99,7.96274948]
[1764260728881,3.12,142.04,142.0,2.97865427]
[1764260729092,5.37865427,142.03,141.99,0.2]
[1764260729295,2.25865427,142.02,141.99,7.96253842]
[1764260730306,2.25865427,142.02,142.0,0.72]
[1764260731100,2.25865427,142.02,142.0,7.76217954]
[1764260732404,6.06865427,142.03,142.0,7.76217954]
[1764260732591,2.94865427,142.02,141.99,0.2]
[1764260732908,2.94865427,142.02,141.99,7.96260412]
[1764260733385,5.37865427,142.03,142.0,0.72]
[1764260733706,6.06865427,142.03,142.0,0.72]
[1764260733906,2.94865427,142.02,141.99,7.24260412]
[1764260734084,2.94865427,142.02,141.99,0.92]
[1764260734281,2.25865427,142.0,141.99,0.2]
[1764260734483,5.37865427,142.0,141.99,0.2]
[1764260734704,6.06865427,142.0,141.99,0.2]
[1764260735206,5.37865427,142.0,141.99,0.2]
[1764260736190,13.11090779,142.0,141.99,0.2]
[1764260737385,6.06865427,142.0,141.99,0.2]
[1764260738793,13.11090779,142.0,141.99,0.2]
[1764260739496,21.92085271,142.0,141.99,0.2]
[1764260744506,21.23085271,142.0,141.99,0.2]
[1764260744706,21.90085271,142.0,141.99,0.2]
[1764260744915,18.78085271,142.0,141.99,0.2]
[1764260745116,21.90085271,142.0,141.99,0.2]
[1764260745429,7.04181837,142.01,141.99,0.9]
[1764260745606,3.12,142.0,141.99,0.2]
[1764260747131,3.12,142.0,141.99,0.9]
[1764260747543,9.30046056,142.01,141.99,0.2]
[1764260747709,3.12,142.0,141.99,0.9]
[1764260747909,3.12,142.0,141.99,0.2]
[1764260751733,9.30046056,142.01,141.99,0.2]
[1764260752036,6.04865427,142.0,141.99,0.2]
[1764260753337,5.37865427,142.0,141.99,0.2]
[1764260754623,11.60872858,142.0,141.99,0.2]
[1764260754941,12.27872858,142.0,141.99,0.2]
[1764260756843,10.83225352,142.0,141.99,0.2]
[1764260757041,12.27872858,142.0,141.99,0.2]
[1764260757355,5.23647506,142.0,141.99,0.2]
[1764260757565,21.0886735,142.0,141.99,0.2]
[1764260757723,21.37299664,142.0,141.99,0.2]
[1764260758521,18.25299664,142.0,141.99,0.2]
[1764260758735,21.37299664,142.0,141.99,0.2]
[1764260759314,18.25299664,142.0,141.99,0.2]
[1764260759550,21.37299664,142.0,141.99,0.2]
[1764260762352,29.11770017,142.0,141.99,0.2]
[1764260763167,25.11880892,141.97,141.93,0.2]
[1764260763446,26.56528398,141.94,141.93,0.2]
[1764260763853,27.23528398,141.94,141.93,0.2]
[1764260764256,34.28051435,141.94,141.93,0.2]
[1764260764553,34.56483749,141.94,141.93,0.2]
[1764260767858,37.68483749,141.94,141.93,0.2]
[1764260768033,44.73246557,141.94,141.93,0.2]
[1764260769748,43.77814243,141.94,141.93,0.2]
[1764260769954,36.73291206,141.94,141.93,0.2]
[1764260770259,43.77814243,141.94,141.93,0.2]
[1764260770596,26.47649208,141.94,141.93,0.87]
[1764260770740,5.93004576,141.97,141.93,7.91572676]
[1764260770741,8.80994492,141.97,141.93,7.91572676]
[1764260771043,20.87533906,141.96,141.94,0.67]
[1764260771458,3.12,141.96,141.94,0.67]
[1764260771844,3.12,141.95,141.94,7.71515243]
[1764260772574,3.12,141.95,141.94,0.67]
[1764260772763,34.57500561,141.98,141.94,7.71523037]
[1764260772961,3.12,141.97,141.94,7.71523037]
[1764260773163,3.12,141.97,141.95,0.67]
[1764260773536,4.56647506,141.97,141.95,0.67]
[1764260774362,35.37148067,141.98,141.95,7.71455648]
[1764260774566,3.12,141.97,141.96,0.67]
[1764260775082,3.12,141.97,141.95,0.67]
[1764260775264,3.12,141.97,141.96,0.67]
[1764260776061,3.12,141.97,141.94,8.49169289]
[1764260776265,3.12,141.97,141.95,0.67]
[1764260778271,4.56647506,141.97,141.95,7.71471802]
[1764260778469,3.12,141.97,141.95,7.71471802]
[1764260778771,3.12,141.97,141.96,0.67]
[1764260780150,3.12,141.97,141.96,7.71411084]
[1764260780679,3.12,141.97,141.96,0.67]
[1764260780870,3.12,141.97,141.96,7.71423781]
[1764260781176,1.44647506,142.02,141.96,9.16071287]
[1764260781375,3.12,142.01,141.97,2.11647506]
[1764260781557,3.12,142.01,141.98,1.44647506]
[1764260781764,3.12,142.01,141.98,2.11647506]
[1764260781966,3.12,142.01,141.99,0.67]
[1764260782158,3.12,142.01,141.99,7.71266533]
[1764260782606,3.12,142.01,142.0,0.67]
[1764260783259,3.12,142.01,141.99,7.04266533]
[1764260783586,3.12,142.01,141.93,0.90457267]
[1764260783587,2.09647506,142.0,141.95,19.05767528]
[1764260783756,1.44647506,141.99,141.96,0.67]
[1764260783955,3.12,141.98,141.96,0.67]
[1764260784150,3.12,141.98,141.96,7.71406343]
[1764260784564,4.56647506,141.98,141.95,7.0445369]
[1764260784781,1.44647506,141.96,141.93,0.2]
[1764260785084,4.56647506,141.95,141.93,0.2]
[1764260785278,4.56647506,141.95,141.93,0.87]
[1764260786763,3.12,141.95,141.93,7.2455609]
[1764260786963,3.12,141.95,141.94,0.67]
[1764260787362,3.12,141.95,141.93,7.2455609]
[1764260787563,3.12,141.95,141.93,7.9155609]
[1764260787882,7.6938961,141.97,141.94,0.67]
[1764260788188,4.56647506,141.96,141.94,0.67]
[1764260788766,4.56647506,141.96,141.94,7.71519115]
[1764260789771,3.12,141.96,141.94,7.71519115]
[1764260790480,2.09647506,141.97,141.94,7.71519115]
[1764260790786,3.12,141.96,141.94,7.71519115]
[1764260793059,16.958864,142.0,141.95,0.67]
[1764260793257,1.44647506,141.98,141.95,0.67]
[1764260793697,22.65598984,142.01,141.97,1.44647506]
[1764260793698,13.84604492,142.01,141.97,1.44647506]
[1764260793890,3.12,142.0,141.99,1.44647506]
[1764260794271,3.12,142.0,141.99,2.11647506]
[1764260795070,3.12,142.0,141.99,9.15922454]
[1764260795499,8.80994492,142.06,141.99,9.15922454]
[1764260795798,5.21647506,142.05,142.0,2.11647506]
[1764260796007,5.21647506,142.05,141.99,7.04274948]
[1764260796008,1.44647506,142.03,141.99,26.09609826]
[1764260796168,3.12,142.02,142.0,0.67]
[1764260796777,3.12,142.02,142.0,2.11647506]
[1764260796979,3.12,142.02,141.99,8.48922454]
[1764260797179,3.77,142.02,141.99,7.71274948]
[1764260797500,3.12,142.02,142.0,0.67]
[1764260797993,2.09647506,142.01,141.96,0.67]
[1764260798197,1.44647506,142.0,141.96,0.67]
[1764260798396,3.12,141.99,141.96,0.67]
[1764260798698,3.12,141.99,141.96,2.11647506]
[1764260798901,3.12,141.99,141.97,0.67]
[1764260799292,3.12,141.99,141.97,7.71348925]
[1764260800383,3.12,141.99,141.96,7.73408567]
[1764260800577,3.8,141.99,141.96,7.73408567]
[1764260800900,3.12,141.99,141.96,7.73408567]
[1764260801481,3.12,141.99,141.97,0.69]
[1764260801680,7.69048433,142.01,141.97,2.13647506]
[1764260801884,3.12,141.98,141.97,2.13647506]
[1764260802198,3.12,141.98,141.97,1.44647506]
[1764260802495,3.12,141.98,141.97,9.18021669]
[1764260803477,14.41662938,142.05,141.97,26.78957077]
[1764260803773,1.44647506,142.03,141.99,1.44647506]
[1764260804182,2.12647506,142.03,142.0,0.69]
[1764260804385,3.12,142.04,142.0,7.73183038]
[1764260804599,0.68,142.03,142.0,7.73183038]
[1764260804894,0.68,142.03,142.0,7.04183038]
[1764260805117,2.12647506,142.03,142.0,7.73183038]
[1764260805299,1.44647506,142.01,141.96,1.44647506]
[1764260805496,8.80994492,142.02,141.96,1.44647506]
[1764260805497,4.56647506,142.0,141.96,0.69]
[1764260805800,5.24647506,142.0,141.96,2.13647506]
[1764260806506,3.12,142.0,141.98,1.44647506]
[1764260806878,3.12,142.0,141.98,2.13647506]
[1764260807080,3.12,142.0,141.99,0.69]
[1764260807907,8.80994492,142.04,141.99,2.13647506]
[1764260808201,19.428864,142.03,142.0,1.44647506]
[1764260808383,19.428864,142.03,142.01,7.04175762]
[1764260808578,19.428864,142.03,142.01,7.73175762]
[1764260809604,16.52982535,142.05,142.01,7.04175762]
[1764260809782,3.12,142.04,142.02,0.69]
[1764260810180,3.12,142.04,142.01,26.09262673]
[1764260810486,3.12,142.04,142.01,26.78262673]
[1764260810801,5.24647506,142.04,142.01,0.69]
[1764260811380,4.56647506,142.04,142.01,0.69]
[1764260812709,4.56647506,142.04,142.01,7.73145111]
[1764260813206,5.24647506,142.04,142.01,7.04145111]
[1764260813401,1.44647506,142.03,142.01,7.04145111]
[1764260813603,1.44647506,142.03,142.01,7.73145111]
[1764260813782,1.44647506,142.03,142.01,0.69]
[1764260814099,2.12647506,142.02,141.99,7.04263837]
[1764260814302,4.56647506,142.01,141.98,7.04305446]
[1764260814491,4.56647506,142.01,141.98,7.73305446]
[1764260814892,3.12,142.01,141.98,7.73305446]
[1764260815510,5.24647506,142.01,141.98,7.73305446]
[1764260816006,5.24647506,142.01,141.97,7.73350676]
[1764260816477,5.24647506,142.01,141.97,25.34286084]
[1764260816683,6.05966265,142.01,141.97,27.60252349]
[1764260816979,6.05966265,142.01,141.97,7.73350676]
[1764260817198,6.05966265,142.01,141.97,9.99316941]
[1764260817395,3.12,142.01,141.98,0.69]
[1764260818079,2.93966265,142.0,141.96,9.99377942]
[1764260818309,2.93966265,142.0,141.97,0.69]
[1764260819307,0.68,142.0,141.98,7.04324552]
[1764260819705,2.93966265,142.0,141.97,7.04357764]
[1764260820588,2.93966265,142.0,141.96,0.69]
[1764260820589,2.25966265,141.98,141.96,7.04413513]
[1764260820787,3.12,141.97,141.96,7.04413513]
[1764260820993,3.12,141.97,141.96,7.73413513]
[1764260821604,3.12,141.97,141.96,7.04413513]
[1764260821807,3.8,141.97,141.95,7.04465327]
[1764260822806,3.12,141.97,141.95,7.04465327]
[1764260824306,2.25966265,141.99,141.96,0.69]
[1764260824512,3.12,141.98,141.96,0.69]
[1764260825187,3.12,141.97,141.96,7.73423781]
[1764260825592,3.12,141.97,141.96,7.04423781]
[1764260827509,3.12,141.97,141.95,7.73461639]
[1764260833414,6.07966265,141.97,141.95,7.04461639]
[1764260835605,2.95966265,141.96,141.93,7.24539464]
[1764260836115,5.37966265,141.97,141.93,7.24539464]
[1764260836323,2.25966265,141.99,141.94,2.92966265]
[1764260836496,3.12,141.98,141.94,0.67]
[1764260836692,22.38852665,141.98,141.94,0.67]
[1764260836894,0.7,141.97,141.94,0.67]
[1764260837119,0.7,141.97,141.94,7.71510826]
[1764260837596,0.7,141.97,141.93,20.07397956]
[1764260837597,2.25966265,141.95,141.93,0.2]
[1764260837800,5.37966265,141.94,141.93,0.2]
[1764260838122,3.12,141.94,141.93,7.24560761]
[1764260838324,3.12,141.94,141.93,7.91560761]
[1764260838702,3.12,141.94,141.93,7.24560761]
[1764260839121,3.12,141.94,141.93,7.91560761]
[1764260839506,3.12,141.94,141.93,7.24560761]
[1764260840209,3.12,141.94,141.93,0.2]
[1764260841416,3.12,141.94,141.93,7.24572676]
[1764260842119,3.12,141.94,141.93,0.2]
[1764260842317,3.82,141.94,141.93,0.2]
[1764260842521,6.07966265,141.94,141.93,0.2]
[1764260844526,3.12,141.94,141.93,7.91572676]
[1764260845232,3.12,141.94,141.93,0.2]
[1764260845908,0.7,141.95,141.93,0.2]
[1764260846109,3.12,141.94,141.93,0.2]
[1764260846636,3.12,141.94,141.93,7.24572676]
[1764260848634,3.12,141.94,141.93,7.91572676]
[1764260849332,3.12,141.94,141.93,7.24572676]
[1764260851926,3.12,141.94,141.93,0.2]
[1764260858531,3.12,141.94,141.93,7.24572676]
[1764260858961,3.12,141.94,141.93,0.2]
[1764260861761,0.72,141.94,141.93,0.2]
[1764260861967,3.12,141.94,141.93,0.2]
[1764260862668,0.72,141.96,141.93,0.9]
[1764260862869,5.37966265,141.95,141.93,7.94566646]
[1764260863169,3.12,141.95,141.93,7.94566646]
[1764260864857,3.84,141.95,141.93,7.94566646]
[1764260865155,3.84,141.95,141.93,7.24566646]
[1764260865356,3.12,141.95,141.94,0.7]
[1764260865674,3.12,141.95,141.93,7.94566646]
[1764260866957,3.12,141.95,141.93,0.9]
[1764260867157,3.84,141.95,141.93,0.2]
[1764260867358,3.84,141.95,141.93,0.9]
[1764260868176,3.12,141.95,141.93,0.9]
[1764260869069,6.09966265,141.95,141.93,0.2]
[1764260869278,0.72,141.94,141.93,0.2]
[1764260869450,6.09966265,141.95,141.93,0.2]
[1764260871077,2.97966265,141.94,141.93,0.2]
[1764260871660,5.37966265,141.95,141.93,0.2]
[1764260871862,0.72,141.94,141.93,0.2]
[1764260872460,2.97966265,141.94,141.93,0.2]
[1764260874479,13.14453526,141.95,141.93,0.2]
[1764260875777,0.72,141.94,141.93,0.2]
[1764260876168,13.14453526,141.95,141.93,0.2]
[1764260876579,12.42453526,141.95,141.93,0.2]
[1764260876874,0.72,141.94,141.93,0.2]
[1764260879181,12.33228187,141.95,141.93,0.2]
[1764260879479,0.72,141.94,141.93,0.2]
[1764260879989,2.16753789,141.94,141.93,0.2]
[1764260880660,10.97748281,141.94,141.93,0.2]
[1764260880877,5.9348936,141.94,141.93,0.9]
[1764260881059,10.16474398,141.95,141.93,0.9]
[1764260881265,15.1463167,141.97,141.94,0.7]
[1764260881478,9.0548936,141.96,141.94,0.7]
[1764260881673,3.12,141.96,141.94,0.7]
[1764260881865,3.84,141.96,141.93,7.94563329]
[1764260882262,3.12,141.95,141.94,0.7]
[1764260883564,3.12,141.95,141.93,7.24563329]
[1764260883764,3.12,141.95,141.93,7.94563329]
[1764260883968,3.84,141.95,141.93,0.2]
[1764260884192,3.84,141.95,141.93,0.9]
[1764260884688,12.33235173,141.95,141.93,0.2]
[1764260884895,7.76523037,141.94,141.93,0.2]
[1764260885195,30.38649871,141.94,141.93,0.2]
[1764260886576,45.13133723,141.94,141.93,0.2]
[1764260887483,39.19644363,141.94,141.93,0.2]
[1764260888366,45.12824893,141.94,141.93,0.2]
[1764260892296,39.19644363,141.94,141.93,0.2]
[1764260892800,33.50649871,141.94,141.93,0.2]
[1764260894000,48.52914383,141.94,141.93,0.2]
[1764260894205,39.19644363,141.94,141.93,0.2]
[1764260894379,48.24201187,141.94,141.93,0.2]
[1764260895487,42.31644363,141.94,141.93,0.2]
[1764260895807,48.24201187,141.94,141.93,0.2]
[1764260897500,42.31644363,141.94,141.93,0.2]
[1764260897726,33.50649871,141.94,141.93,0.2]
[1764260897875,42.31644363,141.94,141.93,0.2]
[1764260898403,48.24201187,141.94,141.93,0.2]
[1764260899104,42.31644363,141.94,141.93,0.2]
[1764260899485,48.24201187,141.94,141.93,0.2]
[1764260900301,32.78649871,141.94,141.93,0.2]
[1764260900702,33.48649871,141.94,141.93,0.2]
[1764260904210,42.29644363,141.94,141.93,0.2]
[1764260904412,40.84890574,141.94,141.93,0.2]
[1764260904619,42.29644363,141.94,141.93,0.2]
[1764260905905,48.22201187,141.94,141.93,0.2]
[1764260907302,48.50633501,141.94,141.93,0.2]
[1764260907617,42.58076677,141.94,141.93,0.2]
[1764260909999,8.80994492,141.9,141.87,0.2]
[1764260910196,10.54180595,141.88,141.87,0.2]
[1764260910500,10.54180595,141.88,141.87,1e-08]
[1764260910501,35.6002534,141.88,141.87,1e-08]
[1764260910696,35.6002534,141.88,141.85,0.2]
[1764260910697,25.11880892,141.86,141.85,0.2]
[1764260910927,8.80994492,141.85,141.81,0.1]
[1764260911101,11.24180595,141.85,141.81,0.1]
[1764260911299,25.11880892,141.82,141.81,0.1]